fUSD/lending_fUSD_20260613
["ID","MTS","AMOUNT","RATE_DAILY","PERIOD"]
[424972180,1781363446000,-10068.03800719,8.896e-05,2]
[424972182,1781363446000,-953.19510533,8.896e-05,2]
[424972181,1781363446000,-438.126,8.896e-05,2]
[424972189,1781363511000,-312.0,8.359e-05,2]
[424972192,1781363724000,-287.064318,7.945e-05,2]
[424972193,1781364042000,-1263.57193613,7.709e-05,2]
[424972194,1781364065000,-371.77806387,7.709e-05,2]
[424972195,1781364384000,-200.38,6.186e-05,2]
[424972196,1781364440000,-199.5,6.851e-05,2]
[424972200,1781364441000,-500.0,7.514e-05,2]
[424972199,1781364441000,-500.0,7.514e-05,2]
[424972198,1781364441000,-365.82562926,7.514e-05,2]
[424972197,1781364441000,-500.0,7.514e-05,2]
[424972201,1781364441000,-375.0838207,7.514e-05,2]
[424972205,1781364448000,-124.44769658,7.514e-05,2]
[424972206,1781364448000,-214.88913128,7.514e-05,2]
[424972204,1781364448000,-375.55230342,7.514e-05,2]
[424972202,1781364448000,-124.9161793,7.514e-05,2]
[424972203,1781364448000,-500.0,7.514e-05,2]
[424972207,1781364491000,-285.11086872,7.514e-05,2]
[424972208,1781364509000,1300.24321183,8.888e-05,3]
[424972209,1781364515000,900.0,9e-05,3]
[424972210,1781364546000,-2075.76036953,7.515e-05,2]
[424972212,1781364570000,2300.0,9e-05,3]
[424972211,1781364570000,-1949.69,7.515e-05,2]
[424972213,1781364572000,-1111.23963047,7.515e-05,2]
[424972221,1781364632000,-167.79416877,7.981e-05,2]
[424972217,1781364632000,-665.48,7.671e-05,2]
[424972218,1781364632000,-400.29488049,7.676e-05,2]
[424972215,1781364632000,-245.85,7.584e-05,2]
[424972225,1781364632000,-400.01499835,8.021e-05,2]
[424972226,1781364632000,-15635.81248935,8.021e-05,2]
[424972222,1781364632000,-1000.0,8.02e-05,2]
[424972216,1781364632000,-1000.0,7.664e-05,2]
[424972228,1781364632000,-395.69869995,8.021e-05,2]
[424972219,1781364632000,-200.0,7.765e-05,2]
[424972229,1781364632000,-46329.22484058,8.021e-05,2]
[424972230,1781364632000,-3373.65774522,8.021e-05,2]
[424972214,1781364632000,-573.96,7.55e-05,2]
[424972227,1781364632000,-2867.5625,8.021e-05,2]
[424972223,1781364632000,-150.0,8.02e-05,2]
[424972220,1781364632000,-154.38,7.894e-05,2]
[424972224,1781364632000,-10692.49095074,8.021e-05,2]
[424972306,1781364638000,-313.0,8.029e-05,2]
[424972308,1781364638000,-320.0,8.029e-05,2]
[424972307,1781364638000,-315.0,8.029e-05,2]
[424972313,1781364638000,-216.029201,8.041e-05,2]
[424972310,1781364638000,-5825.57,8.039e-05,2]
[424972314,1781364638000,-553.38,8.174e-05,2]
[424972311,1781364638000,-9999.99,8.039e-05,2]
[424972312,1781364638000,-150.99,8.039e-05,2]
[424972325,1781364638000,-500.0,8.219e-05,2]
[424972320,1781364638000,-500.0,8.219e-05,2]
[424972317,1781364638000,-214.73,8.178e-05,2]
[424972324,1781364638000,-500.0,8.219e-05,2]
[424972315,1781364638000,-2224.847203,8.178e-05,2]
[424972309,1781364638000,-3573.35,8.039e-05,2]
[424972305,1781364638000,-318.0,8.029e-05,2]
[424972302,1781364638000,-309.0,8.029e-05,2]
[424972301,1781364638000,-311.0,8.029e-05,2]
[424972300,1781364638000,-317.0,8.029e-05,2]
[424972304,1781364638000,-318.0,8.029e-05,2]
[424972297,1781364638000,-314.0,8.029e-05,2]
[424972299,1781364638000,-320.0,8.029e-05,2]
[424972295,1781364638000,-314.0,8.029e-05,2]
[424972296,1781364638000,-309.0,8.029e-05,2]
[424972286,1781364638000,-41659.73217581,8.021e-05,2]
[424972288,1781364638000,-318.0,8.029e-05,2]
[424972293,1781364638000,-314.0,8.029e-05,2]
[424972294,1781364638000,-312.0,8.029e-05,2]
[424972292,1781364638000,-311.0,8.029e-05,2]
[424972290,1781364638000,-319.0,8.029e-05,2]
[424972318,1781364638000,-150.13075189,8.178e-05,2]
[424972303,1781364638000,-313.0,8.029e-05,2]
[424972298,1781364638000,-311.0,8.029e-05,2]
[424972321,1781364638000,-500.0,8.219e-05,2]
[424972319,1781364638000,-500.0,8.219e-05,2]
[424972344,1781364638000,-500.0,8.219e-05,2]
[424972345,1781364638000,-500.0,8.219e-05,2]
[424972342,1781364638000,-500.0,8.219e-05,2]
[424972348,1781364638000,-500.0,8.219e-05,2]
[424972346,1781364638000,-500.0,8.219e-05,2]
[424972349,1781364638000,-500.0,8.219e-05,2]
[424972347,1781364638000,-500.0,8.219e-05,2]
[424972351,1781364638000,-500.0,8.219e-05,2]
[424972355,1781364638000,-500.0,8.219e-05,2]
[424972353,1781364638000,-500.0,8.219e-05,2]
[424972356,1781364638000,-500.0,8.219e-05,2]
[424972357,1781364638000,-500.0,8.219e-05,2]
[424972358,1781364638000,-500.0,8.219e-05,2]
[424972322,1781364638000,-500.0,8.219e-05,2]
[424972352,1781364638000,-500.0,8.219e-05,2]
[424972343,1781364638000,-500.0,8.219e-05,2]
[424972350,1781364638000,-500.0,8.219e-05,2]
[424972339,1781364638000,-500.0,8.219e-05,2]
[424972316,1781364638000,-9999.99,8.178e-05,2]
[424972341,1781364638000,-500.0,8.219e-05,2]
[424972323,1781364638000,-500.0,8.219e-05,2]
[424972326,1781364638000,-500.0,8.219e-05,2]
[424972327,1781364638000,-500.0,8.219e-05,2]
[424972331,1781364638000,-500.0,8.219e-05,2]
[424972328,1781364638000,-500.0,8.219e-05,2]
[424972335,1781364638000,-500.0,8.219e-05,2]
[424972334,1781364638000,-500.0,8.219e-05,2]
[424972330,1781364638000,-500.0,8.219e-05,2]
[424972333,1781364638000,-500.0,8.219e-05,2]
[424972338,1781364638000,-500.0,8.219e-05,2]
[424972332,1781364638000,-500.0,8.219e-05,2]
[424972340,1781364638000,-500.0,8.219e-05,2]
[424972336,1781364638000,-324.00886053,8.219e-05,2]
[424972379,1781364639000,-313.0,8.363e-05,2]
[424972385,1781364639000,-317.0,8.363e-05,2]
[424972381,1781364639000,-309.0,8.363e-05,2]
[424972382,1781364639000,-317.0,8.363e-05,2]
[424972384,1781364639000,-316.0,8.363e-05,2]
[424972383,1781364639000,-310.0,8.363e-05,2]
[424972388,1781364639000,-318.0,8.363e-05,2]
[424972396,1781364639000,-314.0,8.363e-05,2]
[424972387,1781364639000,-312.0,8.363e-05,2]
[424972389,1781364639000,-313.0,8.363e-05,2]
[424972394,1781364639000,-318.0,8.363e-05,2]
[424972391,1781364639000,-320.0,8.363e-05,2]
[424972395,1781364639000,-313.0,8.363e-05,2]
[424972392,1781364639000,-310.0,8.363e-05,2]
[424972380,1781364639000,-312.0,8.363e-05,2]
[424972386,1781364639000,-316.0,8.363e-05,2]
[424972376,1781364639000,-500.0,8.266e-05,2]
[424972361,1781364639000,-500.0,8.219e-05,2]
[424972375,1781364639000,-500.0,8.266e-05,2]
[424972360,1781364639000,-500.0,8.219e-05,2]
[424972359,1781364639000,-500.0,8.219e-05,2]
[424972362,1781364639000,-500.0,8.219e-05,2]
[424972363,1781364639000,-214.65879088,8.219e-05,2]
[424972364,1781364639000,-269.40838366,8.219e-05,2]
[424972367,1781364639000,-151.2,8.219e-05,2]
[424972365,1781364639000,-2000.0,8.219e-05,2]
[424972377,1781364639000,-500.0,8.266e-05,2]
[424972366,1781364639000,-2262.98,8.219e-05,2]
[424972369,1781364639000,-300.0,8.266e-05,2]
[424972372,1781364639000,-300.0,8.266e-05,2]
[424972371,1781364639000,-300.0,8.266e-05,2]
[424972373,1781364639000,-300.0,8.266e-05,2]
[424972370,1781364639000,-300.0,8.266e-05,2]
[424972374,1781364639000,-500.0,8.266e-05,2]
[424972378,1781364639000,-500.0,8.266e-05,2]
[424972368,1781364639000,-500.0,8.219e-05,2]
[424972390,1781364639000,-317.0,8.363e-05,2]
[424972399,1781364639000,-318.0,8.363e-05,2]
[424972397,1781364639000,-319.0,8.363e-05,2]
[424972418,1781364639000,-598.74878545,8.42e-05,2]
[424972421,1781364639000,-471.96,8.47e-05,2]
[424972419,1781364639000,-1767.93950623,8.42e-05,2]
[424972424,1781364639000,-154.38,8.545e-05,2]
[424972420,1781364639000,-567.82438029,8.42e-05,2]
[424972426,1781364639000,-162.13261455,8.557e-05,2]
[424972425,1781364639000,-162.13261455,8.557e-05,2]
[424972423,1781364639000,-245.85,8.532e-05,2]
[424972422,1781364639000,-500.0,8.493e-05,2]
[424972428,1781364639000,-315.0,8.563e-05,2]
[424972429,1781364639000,-315.0,8.563e-05,2]
[424972431,1781364639000,-320.0,8.563e-05,2]
[424972430,1781364639000,-320.0,8.563e-05,2]
[424972432,1781364639000,-57025.00459,8.587e-05,2]
[424972433,1781364639000,-67659.8481303,8.587e-05,2]
[424972427,1781364639000,-162.13261455,8.557e-05,2]
[424972417,1781364639000,-315.0,8.378e-05,2]
[424972393,1781364639000,-318.0,8.363e-05,2]
[424972416,1781364639000,-314.0,8.378e-05,2]
[424972411,1781364639000,-318.0,8.363e-05,2]
[424972401,1781364639000,-315.0,8.363e-05,2]
[424972398,1781364639000,-318.0,8.363e-05,2]
[424972400,1781364639000,-319.0,8.363e-05,2]
[424972402,1781364639000,-310.0,8.363e-05,2]
[424972403,1781364639000,-316.0,8.363e-05,2]
[424972406,1781364639000,-321.0,8.363e-05,2]
[424972405,1781364639000,-316.0,8.363e-05,2]
[424972404,1781364639000,-310.0,8.363e-05,2]
[424972409,1781364639000,-318.0,8.363e-05,2]
[424972410,1781364639000,-314.0,8.363e-05,2]
[424972413,1781364639000,-316.0,8.363e-05,2]
[424972414,1781364639000,-309.0,8.363e-05,2]
[424972415,1781364639000,-309.0,8.378e-05,2]
[424972408,1781364639000,-312.0,8.363e-05,2]
[424972407,1781364639000,-319.0,8.363e-05,2]
[424972412,1781364639000,-316.0,8.363e-05,2]
[424972473,1781364640000,-307.45,0.00010551,2]
[424972471,1781364640000,-307.45,0.00010502,2]
[424972472,1781364640000,-151.2,0.00010502,2]
[424972467,1781364640000,-307.45,0.00010335,2]
[424972465,1781364640000,-2000.0,0.00010274,2]
[424972468,1781364640000,-307.45,0.00010394,2]
[424972466,1781364640000,-18827.19000966,0.000103,2]
[424972462,1781364640000,-307.45,0.00010198,2]
[424972475,1781364640000,-157.71,0.000106,2]
[424972469,1781364640000,-245.85,0.00010428,2]
[424972474,1781364640000,-307.45,0.00010598,2]
[424972487,1781364640000,-500.0,0.00011098,2]
[424972476,1781364640000,-600.0,0.000109,3]
[424972479,1781364640000,-500.0,0.00010958,2]
[424972480,1781364640000,-500.0,0.00010958,2]
[424972478,1781364640000,-4700.0,0.000109,3]
[424972477,1781364640000,-1900.0,0.000109,3]
[424972481,1781364640000,-150.0,0.00010959,2]
[424972482,1781364640000,-166.66,0.00010959,2]
[424972457,1781364640000,-317.0,0.00010034,2]
[424972485,1781364640000,-150.0,0.00010989,2]
[424972484,1781364640000,-151.2,0.00010959,2]
[424972483,1781364640000,-150.0,0.00010959,2]
[424972486,1781364640000,-166.66,0.00011068,2]
[424972470,1781364640000,-307.45,0.0001045,2]
[424972456,1781364640000,-151.0,0.00010019,2]
[424972453,1781364640000,-151.16456928,9.99e-05,2]
[424972458,1781364640000,-313.0,0.00010034,2]
[424972435,1781364640000,-151.2,8.676e-05,2]
[424972438,1781364640000,-6835.8804759,8.884e-05,2]
[424972437,1781364640000,-306.4544,8.796e-05,2]
[424972439,1781364640000,-532796.9841567,8.889e-05,2]
[424972436,1781364640000,-500.0,8.767e-05,2]
[424972434,1781364640000,-2253.4177118,8.587e-05,2]
[424972440,1781364640000,-2253.4177118,8.89e-05,2]
[424972441,1781364640000,-27812.5308612,8.891e-05,2]
[424972442,1781364640000,-321.0,8.896e-05,2]
[424972499,1781364640000,-166.66,0.00011397,2]
[424972446,1781364640000,-154.38,9.196e-05,2]
[424972459,1781364640000,-151.2,0.00010046,2]
[424972444,1781364640000,-151.2,9.132e-05,2]
[424972449,1781364640000,-245.85,9.48e-05,2]
[424972447,1781364640000,-2000.0,9.247e-05,2]
[424972448,1781364640000,-2747.3017699,9.249e-05,2]
[424972451,1781364640000,-151.2,9.589e-05,2]
[424972450,1781364640000,-794.37353624,9.5e-05,2]
[424972455,1781364640000,-307.45,0.00010019,2]
[424972454,1781364640000,-500.0,9.99e-05,2]
[424972463,1781364640000,-553.38,0.00010218,2]
[424972460,1781364640000,-263.19842322,0.000101,2]
[424972461,1781364640000,-307.45,0.00010116,2]
[424972464,1781364640000,-307.45,0.0001027,2]
[424972445,1781364640000,-553.38,9.196e-05,2]
[424972489,1781364640000,-39528.03327682,0.00011099,2]
[424972443,1781364640000,-315.0,8.896e-05,2]
[424972492,1781364640000,-166.66,0.00011178,2]
[424972521,1781364640000,-1418.95860557,0.00012208,2]
[424972522,1781364640000,-553.38,0.00012262,2]
[424972523,1781364640000,-171.1766683,0.00012308,2]
[424972526,1781364640000,-2253.4177118,0.00012308,2]
[424972525,1781364640000,-67659.8481303,0.00012308,2]
[424972524,1781364640000,-57025.00459,0.00012308,2]
[424972527,1781364640000,-2000.0,0.00012329,2]
[424972528,1781364640000,-369.53,0.00012329,2]
[424972533,1781364640000,-170.42,0.00012651,2]
[424972534,1781364640000,-219.436305,0.00012728,2]
[424972529,1781364640000,-151.2,0.00012329,2]
[424972520,1781364640000,-39528.03327682,0.0001213,2]
[424972530,1781364640000,-214.636538,0.00012461,2]
[424972532,1781364640000,-312.890378,0.00012523,2]
[424972535,1781364640000,-6835.8804759,0.00012734,2]
[424972536,1781364640000,-2253.4177118,0.00012742,2]
[424972539,1781364640000,-327.889179,0.00012792,2]
[424972537,1781364640000,-500.0,0.00012762,2]
[424972540,1781364640000,-297.239647,0.00012792,2]
[424972538,1781364640000,-35241.89566823,0.00012762,2]
[424972542,1781364640000,-1300.0,0.000129,4]
[424972543,1781364640000,-2900.0,0.000129,4]
[424972544,1781364640000,-7100.0,0.000129,4]
[424972490,1781364640000,-39528.03327682,0.00011099,2]
[424972531,1781364640000,-195.893602,0.00012523,2]
[424972516,1781364640000,-150.24915352,0.00012,2]
[424972541,1781364640000,-39528.03327682,0.00012822,2]
[424972519,1781364640000,-202.551655,0.00012122,2]
[424972517,1781364640000,-210.049351,0.00012062,2]
[424972488,1781364640000,-39528.03327684,0.00011099,2]
[424972493,1781364640000,-289.18368206,0.00011196,2]
[424972491,1781364640000,-39528.03327682,0.00011099,2]
[424972496,1781364640000,-166.66,0.00011288,2]
[424972495,1781364640000,-553.38,0.0001124,2]
[424972494,1781364640000,-1203.83371197,0.00011238,2]
[424972497,1781364640000,-2000.0,0.00011301,2]
[424972500,1781364640000,-151.2,0.00011416,2]
[424972503,1781364640000,-2262.98,0.00011507,2]
[424972502,1781364640000,-166.66,0.00011507,2]
[424972504,1781364640000,-763.16031228,0.00011696,2]
[424972498,1781364640000,-245.85,0.00011376,2]
[424972510,1781364640000,-151.2,0.00011872,2]
[424972514,1781364640000,-229.452944,0.00011927,2]
[424972501,1781364640000,-39528.03327682,0.00011437,2]
[424972515,1781364640000,-298.905889,0.00011927,2]
[424972512,1781364640000,-258.670224,0.00011927,2]
[424972513,1781364640000,-160.0,0.00011927,2]
[424972507,1781364640000,-2724.9948,0.00011696,2]
[424972518,1781364640000,-232.604503,0.00012062,2]
[424972511,1781364640000,-430.965926,0.00011927,2]
[424972508,1781364640000,-472.200384,0.00011868,2]
[424972509,1781364640000,-171.0,0.00011868,2]
[424972506,1781364640000,-2013.99213848,0.00011696,2]
[424972505,1781364640000,-1346.30525114,0.00011696,2]
[424972567,1781364641000,-150.0,0.00013575,2]
[424972568,1781364641000,-150.0,0.00013588,2]
[424972571,1781364641000,-150.0,0.00013613,2]
[424972574,1781364641000,-150.0,0.00013654,2]
[424972572,1781364641000,-150.0,0.00013618,2]
[424972569,1781364641000,-150.0,0.00013596,2]
[424972573,1781364641000,-150.0,0.0001364,2]
[424972575,1781364641000,-150.0,0.00013661,2]
[424972570,1781364641000,-150.0,0.00013613,2]
[424972579,1781364641000,-205.01,0.00013697,2]
[424972583,1781364641000,-713.65,0.00013698,2]
[424972578,1781364641000,-453.49,0.00013695,2]
[424972577,1781364641000,-150.0,0.00013687,2]
[424972586,1781364641000,-500.0,0.00013698,2]
[424972581,1781364641000,-500.0,0.00013698,2]
[424972584,1781364641000,-713.65,0.00013698,2]
[424972580,1781364641000,-500.0,0.00013698,2]
[424972576,1781364641000,-150.0,0.00013683,2]
[424972566,1781364641000,-150.0,0.00013571,2]
[424972550,1781364641000,-1500.0,0.0001345,2]
[424972564,1781364641000,-150.0,0.00013531,2]
[424972582,1781364641000,-500.0,0.00013698,2]
[424972546,1781364641000,-1914.17942348,0.00013,2]
[424972545,1781364641000,-15808.53307502,0.00013,5]
[424972551,1781364641000,-35241.89566823,0.00013475,2]
[424972548,1781364641000,-2007.40835544,0.00013172,2]
[424972547,1781364641000,-1203.83371195,0.00013069,2]
[424972549,1781364641000,-2747.3017699,0.00013257,2]
[424972554,1781364641000,-150.0,0.00013488,2]
[424972552,1781364641000,-150.0,0.00013488,2]
[424972555,1781364641000,-150.0,0.00013488,2]
[424972553,1781364641000,-150.0,0.00013488,2]
[424972556,1781364641000,-150.0,0.00013488,2]
[424972559,1781364641000,-150.0,0.00013488,2]
[424972560,1781364641000,-150.0,0.00013488,2]
[424972561,1781364641000,-1000.0,0.000135,2]
[424972557,1781364641000,-150.0,0.00013488,2]
[424972558,1781364641000,-150.0,0.00013488,2]
[424972562,1781364641000,-150.0,0.00013509,2]
[424972563,1781364641000,-39528.03327682,0.00013515,2]
[424972565,1781364641000,-150.0,0.00013553,2]
[424972585,1781364641000,-713.65,0.00013698,2]
[424972606,1781364641000,-500.0,0.00013698,2]
[424972599,1781364641000,-500.0,0.00013698,2]
[424972630,1781364641000,-500.0,0.00013698,2]
[424972629,1781364641000,-500.0,0.00013698,2]
[424972620,1781364641000,-503.23187331,0.00013698,2]
[424972623,1781364641000,-500.0,0.00013698,2]
[424972625,1781364641000,-500.0,0.00013698,2]
[424972621,1781364641000,-500.0,0.00013698,2]
[424972622,1781364641000,-500.0,0.00013698,2]
[424972627,1781364641000,-500.0,0.00013698,2]
[424972618,1781364641000,-500.0,0.00013698,2]
[424972628,1781364641000,-500.0,0.00013698,2]
[424972631,1781364641000,-500.0,0.00013698,2]
[424972633,1781364641000,-206.86226619,0.00013698,2]
[424972636,1781364641000,-684.76,0.00013698,2]
[424972634,1781364641000,-502.88764057,0.00013698,2]
[424972637,1781364641000,-684.76,0.00013698,2]
[424972632,1781364641000,-510.071533,0.00013698,2]
[424972635,1781364641000,-684.76,0.00013698,2]
[424972588,1781364641000,-500.0,0.00013698,2]
[424972624,1781364641000,-534.08043595,0.00013698,2]
[424972619,1781364641000,-500.0,0.00013698,2]
[424972626,1781364641000,-500.0,0.00013698,2]
[424972617,1781364641000,-500.0,0.00013698,2]
[424972613,1781364641000,-500.0,0.00013698,2]
[424972603,1781364641000,-898.26,0.00013698,2]
[424972602,1781364641000,-500.0,0.00013698,2]
[424972604,1781364641000,-898.26,0.00013698,2]
[424972593,1781364641000,-500.0,0.00013698,2]
[424972605,1781364641000,-898.26,0.00013698,2]
[424972590,1781364641000,-500.0,0.00013698,2]
[424972597,1781364641000,-500.0,0.00013698,2]
[424972594,1781364641000,-500.0,0.00013698,2]
[424972601,1781364641000,-500.0,0.00013698,2]
[424972610,1781364641000,-500.0,0.00013698,2]
[424972607,1781364641000,-500.0,0.00013698,2]
[424972614,1781364641000,-500.0,0.00013698,2]
[424972615,1781364641000,-500.0,0.00013698,2]
[424972611,1781364641000,-500.0,0.00013698,2]
[424972608,1781364641000,-500.0,0.00013698,2]
[424972616,1781364641000,-505.81197487,0.00013698,2]
[424972612,1781364641000,-500.0,0.00013698,2]
[424972609,1781364641000,-500.0,0.00013698,2]
[424972667,1781364642000,-500.0,0.00013698,2]
[424972663,1781364642000,-500.0,0.00013698,2]
[424972673,1781364642000,-500.0,0.00013698,2]
[424972665,1781364642000,-500.0,0.00013698,2]
[424972662,1781364642000,-500.0,0.00013698,2]
[424972672,1781364642000,-500.0,0.00013698,2]
[424972661,1781364642000,-500.0,0.00013698,2]
[424972664,1781364642000,-500.0,0.00013698,2]
[424972670,1781364642000,-1283.14,0.00013698,2]
[424972669,1781364642000,-1283.14,0.00013698,2]
[424972666,1781364642000,-500.0,0.00013698,2]
[424972668,1781364642000,-1283.14,0.00013698,2]
[424972674,1781364642000,-278.34102146,0.00013698,2]
[424972676,1781364642000,-500.0,0.00013698,2]
[424972677,1781364642000,-500.0,0.00013698,2]
[424972675,1781364642000,-500.0,0.00013698,2]
[424972679,1781364642000,-500.0,0.00013698,2]
[424972682,1781364642000,-500.0,0.00013698,2]
[424972671,1781364642000,-500.0,0.00013698,2]
[424972657,1781364642000,-500.0,0.00013698,2]
[424972639,1781364642000,-684.76,0.00013698,2]
[424972656,1781364642000,-521.81,0.00013698,2]
[424972638,1781364642000,-684.76,0.00013698,2]
[424972641,1781364642000,-500.0,0.00013698,2]
[424972640,1781364642000,-500.0,0.00013698,2]
[424972643,1781364642000,-500.0,0.00013698,2]
[424972644,1781364642000,-500.0,0.00013698,2]
[424972642,1781364642000,-500.0,0.00013698,2]
[424972645,1781364642000,-500.0,0.00013698,2]
[424972648,1781364642000,-500.0,0.00013698,2]
[424972658,1781364642000,-500.0,0.00013698,2]
[424972649,1781364642000,-500.0,0.00013698,2]
[424972650,1781364642000,-500.0,0.00013698,2]
[424972646,1781364642000,-500.0,0.00013698,2]
[424972651,1781364642000,-500.0,0.00013698,2]
[424972652,1781364642000,-500.0,0.00013698,2]
[424972654,1781364642000,-521.81,0.00013698,2]
[424972653,1781364642000,-500.0,0.00013698,2]
[424972655,1781364642000,-521.81,0.00013698,2]
[424972660,1781364642000,-500.0,0.00013698,2]
[424972647,1781364642000,-500.0,0.00013698,2]
[424972678,1781364642000,-500.0,0.00013698,2]
[424972659,1781364642000,-500.0,0.00013698,2]
[424972680,1781364642000,-500.0,0.00013698,2]
[424972705,1781364642000,-500.0,0.00013699,2]
[424972708,1781364642000,-500.0,0.00013699,2]
[424972720,1781364642000,-675.54228,0.000137,2]
[424972717,1781364642000,-3455.791381,0.000137,2]
[424972713,1781364642000,-500.0,0.00013699,2]
[424972715,1781364642000,-500.0,0.00013699,2]
[424972709,1781364642000,-500.0,0.00013699,2]
[424972711,1781364642000,-500.0,0.00013699,2]
[424972707,1781364642000,-500.0,0.00013699,2]
[424972712,1781364642000,-500.0,0.00013699,2]
[424972723,1781364642000,-162.702997,0.00013716,2]
[424972726,1781364642000,-150.0,0.00013727,2]
[424972728,1781364642000,-150.0,0.00013737,2]
[424972730,1781364642000,-150.0,0.00013737,2]
[424972729,1781364642000,-150.0,0.00013737,2]
[424972722,1781364642000,-150.0,0.00013705,2]
[424972731,1781364642000,-150.0,0.00013748,2]
[424972733,1781364642000,-150.0,0.0001377,2]
[424972683,1781364642000,-500.0,0.00013698,2]
[424972706,1781364642000,-500.0,0.00013699,2]
[424972703,1781364642000,-500.0,0.00013699,2]
[424972710,1781364642000,-500.0,0.00013699,2]
[424972698,1781364642000,-500.0,0.00013699,2]
[424972702,1781364642000,-500.0,0.00013699,2]
[424972684,1781364642000,-500.0,0.00013698,2]
[424972681,1781364642000,-500.0,0.00013698,2]
[424972686,1781364642000,-500.0,0.00013698,2]
[424972685,1781364642000,-500.0,0.00013698,2]
[424972687,1781364642000,-200.0,0.00013699,2]
[424972692,1781364642000,-158.06162742,0.00013699,10]
[424972690,1781364642000,-15415.41,0.00013699,2]
[424972689,1781364642000,-9621.95,0.00013699,2]
[424972694,1781364642000,-238.56219231,0.00013699,2]
[424972693,1781364642000,-265.06910257,0.00013699,2]
[424972695,1781364642000,-249.26370566,0.00013699,2]
[424972688,1781364642000,-2500.0,0.00013699,2]
[424972696,1781364642000,-500.0,0.00013699,2]
[424972697,1781364642000,-500.0,0.00013699,2]
[424972701,1781364642000,-500.0,0.00013699,2]
[424972700,1781364642000,-500.0,0.00013699,2]
[424972699,1781364642000,-500.0,0.00013699,2]
[424972691,1781364642000,-722.44,0.00013699,2]
[424972704,1781364642000,-463.03675083,0.00013699,2]
[424972770,1781364643000,-500.0,0.00014045,2]
[424972781,1781364643000,-150.0,0.00014154,2]
[424972776,1781364643000,-150.0,0.00014096,2]
[424972774,1781364643000,-150.0,0.00014074,2]
[424972777,1781364643000,-150.0,0.00014112,2]
[424972772,1781364643000,-150.0,0.00014052,2]
[424972775,1781364643000,-150.0,0.00014087,2]
[424972769,1781364643000,-500.0,0.00014045,2]
[424972779,1781364643000,-150.0,0.00014118,2]
[424972773,1781364643000,-150.0,0.0001407,2]
[424972780,1781364643000,-150.0,0.00014139,2]
[424972792,1781364643000,-477.42588459,0.0001421,7]
[424972785,1781364643000,-500.0,0.00014187,2]
[424972787,1781364643000,-500.0,0.00014187,2]
[424972782,1781364643000,-150.0,0.00014161,2]
[424972784,1781364643000,-684.76,0.00014187,2]
[424972783,1781364643000,-150.0,0.00014183,2]
[424972786,1781364643000,-500.0,0.00014187,2]
[424972789,1781364643000,-35241.89566823,0.00014187,2]
[424972791,1781364643000,-39528.03327682,0.00014207,2]
[424972790,1781364643000,-150.0,0.00014204,2]
[424972796,1781364643000,-150.0,0.00014237,2]
[424972771,1781364643000,-33283.9248,0.00014046,2]
[424972788,1781364643000,-150.0,0.00014187,2]
[424972778,1781364643000,-150.0,0.00014112,2]
[424972737,1781364643000,-150.0,0.00013792,2]
[424972768,1781364643000,-150.0,0.00014031,2]
[424972736,1781364643000,-1418.95860551,0.0001379,2]
[424972735,1781364643000,-150.0,0.00013787,2]
[424972746,1781364643000,-150.0,0.00013862,2]
[424972748,1781364643000,-150.0,0.00013862,2]
[424972794,1781364643000,-150.0,0.00014237,2]
[424972750,1781364643000,-150.0,0.00013879,2]